fUST/lending_fUST_20240829
["ID","MTS","AMOUNT","RATE_DAILY","PERIOD"]
[336482329,1724872829895,-527.0,0.00038,120]
[336482330,1724872829942,-1000.0,0.00038,120]
[336482331,1724872829986,-250.0,0.00038,30]
[336482332,1724872830035,-1575.64,0.00038356,120]
[336482333,1724872830081,-400.0,0.00038356,60]
[336482334,1724872830126,-171.42222222,0.0003863,120]
[336482335,1724872830172,-1575.64,0.00038712,120]
[336482336,1724872830218,-151.0,0.00038712,120]
[336482337,1724872830261,-150.0,0.00039,30]
[336482338,1724872830304,-300.0,0.00039,120]
[336482339,1724872830348,-256.35608265,0.00039,30]
[336482340,1724872830392,-1575.64,0.00039068,120]
[336482341,1724872830437,-1575.64,0.00039424,120]
[336482342,1724872830482,-171.42222222,0.00039589,120]
[336482343,1724872830530,-1575.64,0.0003978,120]
[336482344,1724872830571,-360.5421016,0.00039999,31]
[336482345,1724872830616,-375.90767522,0.00039999,31]
[336482346,1724872830658,-390.30604351,0.00039999,31]
[336482347,1724872830700,-392.59754384,0.00039999,31]
[336482348,1724872830743,-478.310067,0.00039999,31]
[336482349,1724872830786,-485.1315373,0.00039999,31]
[336482350,1724872830830,-200.0,0.0004,120]
[336482351,1724872830871,-151.92677031,0.0004,30]
[336482352,1724872830917,-150.0,0.0004,30]
[336482353,1724872830961,-11000.0,0.0004,120]
[336482354,1724872831003,-413.19080943,0.0004,120]
[336482355,1724872831044,-319.63558544,0.0004,120]
[336482356,1724872831085,-1024.19074847,0.0004,120]
[336482357,1724872831127,-106470.27756836,0.0004,30]
[336482358,1724872831170,-39683.96695641,0.0004,30]
[336482359,1724872831211,-34492.12520656,0.0004,30]
[336482360,1724872831250,-1000.0,0.0004,120]
[336482361,1724872831291,-250.0,0.0004,30]
[336482362,1724872831333,-1575.64,0.00040136,120]
[336482363,1724872831373,-151.0,0.00040164,120]
[336482364,1724872831415,-1575.64,0.00040493,120]
[336482365,1724872831456,-171.42222222,0.00040548,120]
[336482366,1724872831496,-173.96784653,0.00040651,35]
[336482367,1724872831537,-1575.64,0.00040849,120]
[336482368,1724872831577,-1002.28147791,0.000409,30]
[336482369,1724872831617,-200.0,0.00041,30]
[336482370,1724872831656,-300.0,0.00041,120]
[336482371,1724872831702,-500.0,0.00041,120]
[336482372,1724872831743,-500.0,0.00041,120]
[336482373,1724872831785,-500.0,0.00041,120]
[336482374,1724872831829,-500.0,0.00041,120]
[336482375,1724872831876,-500.0,0.00041,120]
[336482376,1724872831927,-500.0,0.00041,120]
[336482378,1724872831974,-500.0,0.00041,120]
[336482379,1724872832020,-500.0,0.00041,120]
[336482380,1724872832065,-500.0,0.00041,120]
[336482381,1724872832110,-553.66,0.00041,120]
[336482382,1724872832156,-500.0,0.00041,120]
[336482383,1724872832204,-500.0,0.00041,120]
[336482384,1724872832249,-500.0,0.00041,120]
[336482385,1724872832291,-500.0,0.00041,120]
[336482386,1724872832336,-500.0,0.00041,120]
[336482387,1724872832380,-500.0,0.00041,120]
[336482388,1724872832424,-399.33,0.00041,120]
[336482389,1724872832467,-1386.66643436,0.00041,120]
[336482390,1724872832512,-1000.0,0.00041095,120]
[336482391,1724872832554,-1000.0,0.00041095,120]
[336482392,1724872832596,-1000.0,0.00041095,120]
[336482393,1724872832638,-265.99327948,0.00041095,120]
[336482394,1724872832679,-3000.0,0.00041095,120]
[336482395,1724872832723,-1575.64,0.00041205,120]
[336482396,1724872832765,-171.42222222,0.00041507,120]
[336482397,1724872832809,-1327.558489,0.00041553,120]
[336482398,1724872832852,-1575.64,0.00041561,120]
[336482399,1724872832899,-181.28676533,0.0004159,30]
[336482400,1724872832945,-151.0,0.00041616,120]
[336482401,1724872832994,-1575.64,0.00041917,120]
[336482402,1724872833042,-1000.0,0.00042,120]
[336482403,1724872833086,-250.0,0.00042,30]
[336482404,1724872833132,-1575.64,0.00042273,120]
[336482405,1724872833179,-365.30329311,0.000424,120]
[336482406,1724872833229,-3000.0,0.00042465,120]
[336482407,1724872833275,-171.42222222,0.00042466,120]
[336482408,1724872833319,-1575.64,0.0004263,120]
[336482409,1724872833361,-1575.64,0.00042986,120]
[336482410,1724872833408,-150.0,0.00043,60]
[336482411,1724872833454,-602.63773,0.00043,120]
[336482412,1724872833500,-151.0,0.00043068,120]
[336482413,1724872833545,-1575.64,0.00043342,120]
[336482414,1724872833589,-171.42222222,0.00043425,120]
[336482415,1724872833635,-1575.64,0.00043698,120]
[336482416,1724872833679,-527.2892,0.00043764,120]
[336482417,1724872833723,-500.0,0.00043835,30]
[336482418,1724872833767,-3000.0,0.00043835,120]
[336482419,1724872833811,-2000.0,0.00043835,120]
[336482420,1724872833859,-579.06695684,0.00043835,120]
[336482421,1724872833916,-10000.0,0.00044,34]
[336482422,1724872833967,-150.0,0.00044,60]
[336482423,1724872834017,-1000.0,0.00044,120]
[336482425,1724872834066,-323.26186061,0.00044,120]
[336482426,1724872834112,-200.0,0.00044,30]
[336482427,1724872834157,-250.0,0.00044,30]
[336482428,1724872834202,-1575.64,0.00044054,120]
[336482429,1724872834247,-171.42222222,0.00044384,120]
[336482430,1724872834291,-1575.64,0.0004441,120]
[336482431,1724872834333,-151.0,0.00044521,120]
[336482432,1724872834522,-8000.0,0.000446,90]
[336482433,1724872834567,-200.0,0.00044654,120]
[336482434,1724872834611,-10000.0,0.00044688,120]
[336482435,1724872834654,-63274.09033522,0.000447,120]
[336482436,1724872834700,-1575.64,0.00044767,120]
[336482437,1724872834741,-507.34994863,0.000448,120]
[336482438,1724872834784,-1026.23429541,0.000448,120]
[336482439,1724872834827,-265101.99987815,0.000448,120]
[336482440,1724872834869,-499999.0,0.000448,120]
[336482441,1724872834914,-200.0,0.00044946,120]
[336482442,1724872834963,-240.09639162,0.00045,120]
[336482443,1724872835008,-200.0,0.00045,60]
[336482444,1724872835053,-5498.26879828,0.00045,120]
[336482445,1724872835096,-1501.0,0.00045,40]
[336482446,1724872835139,-7028.61860656,0.00045,120]
[336482447,1724872835181,-5000.0,0.00045,120]
[336482448,1724872835230,-4000.0,0.00045,120]
[336482449,1724872835272,-8340.0,0.00045,120]
[336482450,1724872835316,-20054.90486625,0.00045,30]
[336482451,1724872835358,-31792.58474051,0.00045,120]
[336482452,1724872835400,-934.35445079,0.00045,120]
[336482453,1724872835446,-1575.64,0.00045123,120]
[336482454,1724872835488,-1618.42845964,0.00045205,120]
[336482455,1724872835531,-19999.99714069,0.0004527,60]
[336482456,1724872835575,-171.42222222,0.00045342,120]
[336482457,1724872835620,-1575.64,0.00045479,120]
[336482458,1724872835665,-200.0,0.00045703,120]
[336482459,1724872835707,-1388.89,0.000458,90]
[336482460,1724872835750,-1575.64,0.00045835,120]
[336482461,1724872835793,-245.18884627,0.000459,120]
[336482462,1724872835840,-1000.0,0.000459,120]
[336482463,1724872835886,-1000.0,0.000459,60]
[336482464,1724872835933,-151.0,0.00045973,120]
[336482465,1724872835979,-10000.0,0.00046,36]
[336482466,1724872836021,-1000.0,0.00046,120]
[336482467,1724872836064,-163.16813672,0.00046,120]
[336482468,1724872836106,-2695.70970873,0.00046,70]
[336482469,1724872836149,-335.47651947,0.00046,120]
[336482470,1724872836192,-250.0,0.00046,30]
[336482471,1724872836236,-1575.64,0.00046191,120]
[336482472,1724872836277,-171.42222222,0.00046301,120]
[336482473,1724872836317,-201.85160878,0.000465,120]
[336482474,1724872836358,-101935.82094195,0.000465,120]
[336482475,1724872836401,-1575.70400996,0.00046547,120]
[336482476,1724872836443,-501.79174304,0.00046575,120]
[336482478,1724872836485,-8000.0,0.000466,90]
[336482479,1724872836525,-10000.0,0.00046688,120]
[336482480,1724872836566,-1368.90275624,0.00047,120]
[336482481,1724872836606,-171.42222222,0.0004726,120]
[336482482,1724872836648,-100000.0,0.00047361,120]
[336482483,1724872836691,-151.0,0.00047425,120]
[336482484,1724872836732,-1327.558489,0.00047489,120]
[336482485,1724872836772,-195.09236694,0.000475,120]
[336482486,1724872836813,-8000.0,0.000476,90]
[336482487,1724872836853,-10000.0,0.00047688,120]
[336482488,1724872836898,-1000.0,0.00048,120]
[336482489,1724872836939,-250.0,0.00048,30]
[336482490,1724872836984,-173.96784653,0.00048151,68]
[336482491,1724872837025,-171.42222222,0.00048219,120]
[336482492,1724872837067,-8000.0,0.000486,90]
[336482493,1724872837109,-10000.0,0.00048688,120]
[336482494,1724872837153,-1628.568,0.000488,90]
[336482495,1724872837195,-151.0,0.00048877,120]
[336482496,1724872837236,-879.91812588,0.00049,120]
[336482497,1724872837277,-999.0,0.00049,120]
[336482498,1724872837319,-171.42222222,0.00049178,120]
[336482499,1724872837359,-500.0,0.00049315,31]
[336482500,1724872837400,-500.0,0.00049315,31]
[336482501,1724872837442,-258.79925143,0.00049315,31]
[336482502,1724872837485,-306.53325016,0.00049315,31]
[336482503,1724872837527,-500.0,0.00049315,31]
[336482504,1724872837570,-500.0,0.00049315,31]
[336482505,1724872837614,-500.0,0.00049315,31]
[336482508,1724872845047,3200.0,0.00049315,30]
[336482520,1724873185402,275.884644,0.00025,120]
[336482521,1724873185424,224.115356,0.00025,120]
[336482525,1724873227148,-168.175545,0.00014247,2]
[336482526,1724873227171,-632.277118,0.00014247,2]
[336482527,1724873227193,-380.894636,0.00018904,2]
[336482528,1724873227217,-200.94243887,0.00019232,2]
[336482529,1724873229219,-5856.37999731,0.00019232,2]
[336482530,1724873229243,-1793.37465453,0.00019235,2]
[336482531,1724873229266,-885.10069068,0.00019324,2]
[336482532,1724873233116,-438.40830449,0.00019324,2]
[336482533,1724873247144,-500.0,0.00018846,2]
[336482534,1724873247168,-349.4782399,0.00018976,2]
[336482537,1724873298837,10060.42593085,0.000125,2]
[336482539,1724873352118,-1647.73492559,0.00015,7]
[336482551,1724873432653,-253.79445239,0.00018233,2]
[336482553,1724873432662,-24900.0,0.00018333,2]
[336482555,1724873432672,-166.666667,0.00018465,2]
[336482557,1724873432681,-166.666667,0.00018533,2]
[336482558,1724873432691,-166.666667,0.00018602,2]
[336482560,1724873432700,-166.666667,0.00018671,2]
[336482562,1724873432710,-166.666667,0.0001874,2]
[336482564,1724873432719,-166.666667,0.00018808,2]
[336482565,1724873432728,-166.666667,0.00018877,2]
[336482566,1724873432738,-166.666667,0.00018946,2]
[336482567,1724873432748,-150.5217601,0.00018976,2]
[336482568,1724873432757,-166.666667,0.00019015,2]
[336482569,1724873432766,-166.666667,0.00019083,2]
[336482570,1724873432776,-166.666667,0.00019152,2]
[336482571,1724873432786,-166.666667,0.00019221,2]
[336482572,1724873432795,-166.666667,0.0001929,2]
[336482573,1724873432805,-10168.0380117,0.00019322,2]
[336482574,1724873432815,-500.0,0.00019323,2]
[336482575,1724873432824,-500.0,0.00019323,2]
[336482576,1724873432835,-500.0,0.00019323,2]
[336482577,1724873432845,-500.0,0.00019323,2]
[336482578,1724873432854,-500.0,0.00019323,2]
[336482579,1724873432865,-500.0,0.00019323,2]
[336482580,1724873432875,-500.0,0.00019323,2]
[336482581,1724873432887,-500.0,0.00019323,2]
[336482582,1724873432897,-10168.0380117,0.00019324,2]
[336482583,1724873432907,-603.2844025,0.00019331,2]
[336482584,1724873432916,-1120.64,0.00019331,2]
[336482585,1724873432925,-768.23,0.00019331,2]
[336482586,1724873432935,-500.0,0.00019331,2]
[336482587,1724873432944,-627.12,0.00019331,2]
[336482588,1724873432954,-1543.42,0.00019331,2]
[336482589,1724873432963,-500.0,0.00019331,2]
[336482590,1724873432974,-500.0,0.00019331,2]
[336482591,1724873432983,-500.0,0.00019331,2]
[336482592,1724873432992,-500.0,0.00019331,2]
[336482593,1724873433002,-500.0,0.00019331,2]
[336482594,1724873433012,-1151.87,0.00019331,2]
[336482595,1724873433022,-500.0,0.00019331,2]
[336482596,1724873433031,-677.56,0.00019331,2]
[336482597,1724873433041,-500.0,0.00019331,2]
[336482598,1724873433051,-500.0,0.00019331,2]
[336482599,1724873433061,-500.0,0.00019331,2]
[336482600,1724873433072,-500.0,0.00019331,2]
[336482601,1724873433083,-965.27,0.00019331,2]
[336482602,1724873433093,-500.0,0.00019331,2]
[336482603,1724873433103,-500.0,0.00019331,2]
[336482604,1724873433114,-5379.39,0.00019331,2]
[336482605,1724873433124,-500.0,0.00019331,2]
[336482606,1724873433135,-500.0,0.00019331,2]
[336482607,1724873433145,-846.6,0.00019331,2]
[336482608,1724873433157,-500.0,0.00019331,2]
[336482609,1724873433167,-698.36,0.00019331,2]
[336482610,1724873433177,-500.0,0.00019331,2]
[336482611,1724873433187,-500.0,0.00019332,2]
[336482612,1724873433197,-639.75,0.00019332,2]
[336482613,1724873433207,-500.0,0.00019332,2]
[336482614,1724873433217,-500.0,0.00019332,2]
[336482615,1724873433227,-500.0,0.00019332,2]
[336482616,1724873433236,-500.0,0.00019332,2]
[336482617,1724873433246,-500.0,0.00019332,2]
[336482618,1724873433256,-500.0,0.00019332,2]
[336482619,1724873433266,-500.0,0.00019332,2]
[336482620,1724873433279,-500.0,0.00019332,2]
[336482621,1724873433290,-500.0,0.00019332,2]
[336482622,1724873433299,-500.0,0.00019332,2]
[336482623,1724873433309,-500.0,0.00019332,2]
[336482624,1724873433319,-500.0,0.00019332,2]
[336482625,1724873433329,-500.0,0.00019332,2]
[336482626,1724873433339,-500.0,0.00019332,2]
[336482627,1724873433348,-500.0,0.00019332,2]
[336482628,1724873433358,-509.96514158,0.00019332,2]
[336482629,1724873433368,-500.0,0.00019332,2]
[336482630,1724873433378,-500.0,0.00019332,2]
[336482631,1724873433391,-316.68,0.00019332,2]
[336482632,1724873433405,-511.14,0.00019332,2]
[336482633,1724873433417,-500.0,0.00019332,2]
[336482634,1724873433427,-500.0,0.00019332,2]
[336482635,1724873433437,-500.0,0.00019332,2]
[336482636,1724873433447,-500.0,0.00019332,2]
[336482637,1724873433457,-500.0,0.00019332,2]
[336482638,1724873433467,-500.0,0.00019332,2]
[336482639,1724873433477,-500.0,0.00019332,2]
[336482640,1724873433487,-500.0,0.00019332,2]
[336482641,1724873433497,-500.0,0.00019332,2]
[336482642,1724873433507,-500.0,0.00019332,2]
[336482643,1724873433516,-500.0,0.00019332,2]
[336482644,1724873433526,-668.39,0.00019332,2]
[336482645,1724873433536,-500.0,0.00019332,2]
[336482646,1724873433546,-500.0,0.00019332,2]
[336482647,1724873433555,-1062.16,0.00019332,2]
[336482648,1724873433566,-500.0,0.00019332,2]
[336482649,1724873433575,-500.0,0.00019332,2]
[336482650,1724873433585,-500.0,0.00019332,2]
[336482651,1724873433595,-500.0,0.00019332,2]
[336482652,1724873433604,-500.0,0.00019332,2]
[336482653,1724873433614,-407.19255765,0.00019332,2]
[336482654,1724873433624,-500.0,0.00019332,2]
[336482655,1724873433635,-500.0,0.00019332,2]
[336482656,1724873433645,-1158.57,0.00019332,2]
[336482657,1724873433655,-500.0,0.00019332,2]
[336482658,1724873433664,-500.0,0.00019332,2]
[336482659,1724873433674,-1117.65121659,0.00019332,2]
[336482675,1724873439039,-500.0,0.00019323,2]
[336482676,1724873439048,-500.0,0.00019331,2]
[336482677,1724873439058,-2607.46878341,0.00019332,2]
[336482678,1724873439069,-500.0,0.00019332,2]
[336482679,1724873439082,-500.0,0.00019332,2]
[336482680,1724873439092,-500.0,0.00019332,2]
[336482681,1724873439102,-500.0,0.00019332,2]
[336482682,1724873439112,-500.0,0.00019332,2]
[336482683,1724873439123,-500.0,0.00019332,2]
[336482684,1724873439133,-501.34064083,0.00019332,2]
[336482685,1724873439144,-500.0,0.00019332,2]
[336482686,1724873439154,-500.0,0.00019332,2]
[336482687,1724873439165,-500.0,0.00019332,2]
[336482688,1724873439325,-500.0,0.00019332,2]
[336482689,1724873439335,-500.0,0.00019332,2]
[336482690,1724873439345,-500.0,0.00019332,2]
[336482691,1724873439355,-500.0,0.00019332,2]
[336482692,1724873439364,-500.0,0.00019332,2]
[336482693,1724873439374,-500.0,0.00019332,2]
[336482694,1724873439385,-1085.53,0.00019332,2]
[336482695,1724873439397,-500.0,0.00019332,2]
[336482696,1724873439406,-500.0,0.00019332,2]
[336482697,1724873439416,-784.98,0.00019332,2]
[336482698,1724873439426,-500.0,0.00019332,2]
[336482699,1724873439436,-500.0,0.00019332,2]
[336482700,1724873439446,-500.0,0.00019332,2]
[336482701,1724873439456,-501.40061803,0.00019332,2]
[336482702,1724873439465,-500.0,0.00019332,2]
[336482703,1724873439475,-500.0,0.00019332,2]
[336482704,1724873439484,-500.0,0.00019332,2]
[336482705,1724873439494,-500.0,0.00019332,2]
[336482706,1724873439504,-500.0,0.00019332,2]
[336482707,1724873439513,-588.83,0.00019332,2]
[336482708,1724873439523,-500.0,0.00019332,2]
[336482709,1724873439532,-500.0,0.00019332,2]
[336482710,1724873439543,-500.0,0.00019332,2]
[336482711,1724873439551,-500.0,0.00019332,2]
[336482712,1724873439560,-500.0,0.00019332,2]
[336482713,1724873439570,-500.98085037,0.00019332,2]
[336482714,1724873439580,-500.42200568,0.00019332,2]
[336482715,1724873439589,-500.0,0.00019332,2]
[336482716,1724873439598,-502.80770352,0.00019332,2]
[336482717,1724873439608,-500.0,0.00019332,2]
[336482718,1724873439619,-500.0,0.00019332,2]
[336482719,1724873439630,-500.0,0.00019332,2]
[336482720,1724873439639,-500.0,0.00019332,2]
[336482721,1724873439652,-500.0,0.00019332,2]
[336482722,1724873439662,-500.0,0.00019332,2]
[336482723,1724873439672,-500.0,0.00019332,2]
[336482724,1724873439682,-500.0,0.00019332,2]
[336482725,1724873439691,-500.0,0.00019332,2]
[336482726,1724873439701,-500.0,0.00019332,2]
[336482727,1724873439712,-500.0,0.00019332,2]
[336482728,1724873439721,-500.0,0.00019332,2]
[336482729,1724873439731,-500.0,0.00019332,2]
[336482730,1724873439741,-500.0,0.00019332,2]
[336482731,1724873439751,-500.0,0.00019332,2]
[336482732,1724873439760,-500.0,0.00019332,2]
[336482733,1724873439768,-500.0,0.00019332,2]
[336482734,1724873439778,-500.0,0.00019332,2]
[336482735,1724873439787,-500.0,0.00019332,2]
[336482736,1724873439797,-500.0,0.00019332,2]
[336482737,1724873439806,-500.0,0.00019332,2]
[336482738,1724873439816,-500.0,0.00019332,2]
[336482739,1724873439826,-500.0,0.00019332,2]
[336482740,1724873439835,-500.0,0.00019332,2]
[336482741,1724873439845,-512.74777087,0.00019332,2]
[336482742,1724873439854,-500.0,0.00019332,2]
[336482743,1724873439864,-517.41469763,0.00019332,2]
[336482744,1724873439874,-500.0,0.00019332,2]
[336482745,1724873439883,-500.0,0.00019332,2]
[336482746,1724873439892,-278.83849788,0.00019332,2]
[336482747,1724873439902,-500.0,0.00019332,2]
[336482748,1724873439912,-500.0,0.00019332,2]
[336482749,1724873439922,-500.0,0.00019332,2]
[336482750,1724873439934,-500.0,0.00019332,2]
[336482751,1724873439943,-500.0,0.00019332,2]
[336482752,1724873439953,-500.0,0.00019332,2]
[336482753,1724873439962,-500.0,0.00019332,2]
[336482754,1724873439972,-500.0,0.00019332,2]
[336482755,1724873439982,-500.0,0.00019332,2]
[336482756,1724873439991,-500.0,0.00019332,2]
[336482757,1724873440001,-500.0,0.00019332,2]
[336482758,1724873440011,-895.92,0.00019332,2]
[336482759,1724873440020,-500.0,0.00019332,2]
[336482760,1724873440031,-500.0,0.00019332,2]
[336482761,1724873440041,-500.0,0.00019332,2]
[336482762,1724873440050,-500.0,0.00019332,2]
[336482763,1724873440060,-500.0,0.00019332,2]
[336482764,1724873440070,-500.0,0.00019332,2]
[336482765,1724873440083,-500.0,0.00019332,2]
[336482766,1724873440092,-864.12,0.00019332,2]
[336482767,1724873440101,-500.0,0.00019332,2]
[336482768,1724873440111,-500.0,0.00019332,2]
[336482769,1724873440122,-500.0,0.00019332,2]
[336482770,1724873440133,-500.0,0.00019332,2]
[336482771,1724873440143,-500.0,0.00019332,2]
[336482772,1724873440154,-500.0,0.00019332,2]
[336482773,1724873440167,-500.0,0.00019332,2]
[336482774,1724873440177,-582.77,0.00019332,2]
[336482775,1724873440187,-519.03719711,0.00019332,2]
[336482777,1724873440197,-500.0,0.00019332,2]
[336482778,1724873440206,-500.0,0.00019332,2]
[336482780,1724873440216,-500.0,0.00019332,2]
[336482781,1724873440226,-500.0,0.00019332,2]
[336482782,1724873440237,-500.0,0.00019332,2]
[336482783,1724873440247,-500.0,0.00019332,2]
[336482784,1724873440257,-500.0,0.00019332,2]
[336482785,1724873440268,-500.0,0.00019332,2]
[336482786,1724873440277,-617.42313452,0.00019332,2]
[336482787,1724873440287,-500.0,0.00019332,2]
[336482788,1724873440296,-500.0,0.00019332,2]
[336482789,1724873440306,-500.0,0.00019332,2]
[336482790,1724873440316,-500.0,0.00019332,2]
[336482791,1724873440326,-500.0,0.00019332,2]
[336482792,1724873440336,-500.0,0.00019332,2]
[336482793,1724873440345,-500.0,0.00019332,2]
[336482794,1724873440355,-500.0,0.00019332,2]
[336482795,1724873440364,-500.0,0.00019332,2]
[336482796,1724873440374,-500.0,0.00019332,2]
[336482797,1724873440384,-500.0,0.00019332,2]
[336482798,1724873440394,-430.62158138,0.00019332,2]
[336482799,1724873440405,-500.0,0.00019332,2]
[336482800,1724873440415,-500.0,0.00019332,2]
[336482801,1724873440424,-500.19277043,0.00019332,2]
[336482802,1724873440434,-500.0,0.00019332,2]
[336482803,1724873440444,-500.0,0.00019332,2]
[336482804,1724873440453,-500.0,0.00019332,2]
[336482805,1724873440462,-500.0,0.00019332,2]
[336482806,1724873440471,-500.0,0.00019332,2]
[336482807,1724873440481,-500.0,0.00019332,2]
[336482808,1724873440490,-500.0,0.00019332,2]
[336482809,1724873440500,-500.0,0.00019332,2]
[336482810,1724873440510,-500.0,0.00019332,2]
[336482811,1724873440519,-500.0,0.00019333,2]
[336482812,1724873440528,-500.0,0.00019333,2]
[336482813,1724873440538,-500.0,0.00019333,2]
[336482814,1724873440547,-500.0,0.00019333,2]
[336482815,1724873440557,-500.0,0.00019333,2]
[336482816,1724873440566,-500.0,0.00019333,2]
[336482817,1724873440576,-500.0,0.00019333,2]
[336482818,1724873440585,-500.0,0.00019333,2]
[336482819,1724873440594,-502.36164165,0.00019333,2]
[336482820,1724873440603,-500.0,0.00019333,2]
[336482821,1724873440613,-500.0,0.00019333,2]
[336482823,1724873440622,-500.0,0.00019333,2]
[336482825,1724873440631,-500.0,0.00019333,2]
[336482826,1724873440642,-500.0,0.00019333,2]
[336482828,1724873440664,-500.0,0.00019333,2]
[336482830,1724873440674,-500.0,0.00019333,2]
[336482831,1724873440684,-500.0,0.00019333,2]
[336482833,1724873440694,-500.0,0.00019333,2]
[336482834,1724873440704,-500.0,0.00019333,2]
[336482836,1724873440714,-523.51,0.00019333,2]
[336482837,1724873440724,-500.0,0.00019333,2]
[336482838,1724873440734,-500.0,0.00019333,2]
[336482839,1724873440746,-500.0,0.00019333,2]
[336482840,1724873440757,-586.22,0.00019333,2]
[336482841,1724873440767,-500.0,0.00019333,2]
[336482842,1724873440776,-500.0,0.00019333,2]
[336482844,1724873440785,-500.0,0.00019333,2]
[336482845,1724873440795,-500.0,0.00019333,2]
[336482846,1724873440805,-500.0,0.00019333,2]
[336482847,1724873440815,-500.0,0.00019333,2]
[336482848,1724873440825,-500.0,0.00019333,2]
[336482849,1724873440837,-500.0,0.00019333,2]
[336482850,1724873440847,-500.0,0.00019333,2]
[336482851,1724873440858,-500.0,0.00019333,2]
[336482852,1724873440867,-500.0,0.00019333,2]
[336482853,1724873440877,-500.0,0.00019333,2]
[336482854,1724873440887,-500.0,0.00019333,2]
[336482855,1724873440898,-500.0,0.00019333,2]
[336482856,1724873440908,-500.0,0.00019334,2]
[336482857,1724873440918,-500.0,0.00019334,2]
[336482858,1724873440928,-500.0,0.00019334,2]
[336482859,1724873440937,-500.0,0.00019334,2]
[336482860,1724873440949,-500.0,0.00019334,2]
[336482861,1724873440959,-500.0,0.00019334,2]
[336482862,1724873440969,-500.0,0.00019334,2]
[336482863,1724873440978,-500.0,0.00019334,2]
[336482864,1724873440988,-500.0,0.00019334,2]
[336482865,1724873440998,-500.0,0.00019334,2]
[336482866,1724873441008,-500.0,0.00019334,2]
[336482867,1724873441018,-500.0,0.00019334,2]
[336482868,1724873441028,-500.0,0.00019334,2]
[336482869,1724873441037,-500.0,0.00019334,2]
[336482870,1724873441047,-500.0,0.00019334,2]
[336482871,1724873441057,-500.0,0.00019334,2]
[336482872,1724873441066,-500.0,0.00019334,2]
[336482873,1724873441076,-500.0,0.00019334,2]
[336482874,1724873441088,-446.33,0.00019334,2]
[336482875,1724873441097,-500.0,0.00019334,2]
[336482876,1724873441107,-500.0,0.00019334,2]
[336482877,1724873441117,-500.04200331,0.00019334,2]
[336482878,1724873441127,-500.0,0.00019334,2]
[336482879,1724873441139,-500.0,0.00019334,2]
[336482880,1724873441157,-500.0,0.00019334,2]
[336482881,1724873441172,-500.0,0.00019334,2]
[336482882,1724873441181,-500.0,0.00019334,2]
[336482883,1724873441190,-500.0,0.00019334,2]
[336482884,1724873441209,-500.0,0.00019334,2]
[336482885,1724873441220,-500.0,0.00019334,2]
[336482886,1724873441230,-500.0,0.00019334,2]
[336482887,1724873441241,-500.0,0.00019334,2]
[336482888,1724873441253,-500.0,0.00019334,2]
[336482889,1724873441264,-500.0,0.00019334,2]
[336482890,1724873441273,-500.0,0.00019334,2]
[336482891,1724873441285,-500.0,0.00019334,2]